fUSD/lending_fUSD_20250811
["ID","MTS","AMOUNT","RATE_DAILY","PERIOD"]
[378584704,1754917851790,-1021.48,0.00016619,2]
[378584705,1754917851799,-488.76,0.00016619,2]
[378584707,1754917851808,-811.87,0.00016619,2]
[378584709,1754917851817,-3487.34,0.00016619,2]
[378584711,1754917851827,-1713.92,0.00016619,2]
[378584713,1754917851836,-400.0,0.00016619,2]
[378584715,1754917851846,-2575.47,0.00016619,2]
[378584717,1754917851855,-400.0,0.00016619,2]
[378584719,1754917851864,-1000.0,0.00016619,2]
[378584721,1754917851874,-500.0,0.00016619,2]
[378584723,1754917851883,-400.0,0.00016619,2]
[378584725,1754917851894,-2031.02,0.00016619,2]
[378584727,1754917851904,-1274.26,0.00016619,2]
[378584729,1754917851913,-920.23,0.00016619,2]
[378584731,1754917851923,-400.0,0.00016619,2]
[378584733,1754917851935,-980.22,0.00016619,2]
[378584735,1754917851944,-400.0,0.0001662,2]
[378584737,1754917851954,-389.09737322,0.0001662,2]
[378584739,1754917851963,-400.0,0.0001662,2]
[378584741,1754917851972,-400.0,0.0001662,2]
[378584743,1754917851983,-400.0,0.0001662,2]
[378584745,1754917851992,-400.0,0.0001662,2]
[378584747,1754917852002,-400.0,0.0001662,2]
[378584749,1754917852011,-400.0,0.0001662,2]
[378584751,1754917852022,-400.0,0.0001662,2]
[378584753,1754917852032,-396.83818287,0.0001662,2]
[378584755,1754917852042,-489.55,0.0001662,2]
[378584757,1754917852051,-400.0,0.0001662,2]
[378584759,1754917852060,-400.0,0.0001662,2]
[378584761,1754917852070,-400.0,0.0001662,2]
[378584763,1754917852079,-456.17,0.0001662,2]
[378584765,1754917852089,-1151.53,0.0001662,2]
[378584767,1754917852098,-7858.81,0.0001662,2]
[378584769,1754917852108,-1636.25,0.0001662,2]
[378584771,1754917852118,-500.0,0.0001662,2]
[378584773,1754917852127,-1909.12,0.0001662,2]
[378584775,1754917852136,-3704.71,0.0001662,2]
[378584777,1754917852145,-721.77,0.0001662,2]
[378584779,1754917852154,-2031.04,0.0001662,2]
[378584781,1754917852163,-1343.85,0.0001662,2]
[378584783,1754917852172,-3046.72,0.0001662,2]
[378584785,1754917852184,-723.27,0.0001662,2]
[378584787,1754917852193,-1312.36,0.0001662,2]
[378584789,1754917852202,-423.34,0.0001662,2]
[378584791,1754917852211,-2496.15,0.0001662,2]
[378584793,1754917852220,-3002.39,0.0001662,2]
[378584795,1754917852230,-1340.84,0.0001662,2]
[378584797,1754917852240,-2131.49,0.0001662,2]
[378584799,1754917852250,-500.0,0.0001662,2]
[378584801,1754917852259,-1386.89,0.0001662,2]
[378584803,1754917852268,-1710.68,0.0001662,2]
[378584805,1754917852278,-2332.21,0.0001662,2]
[378584807,1754917852288,-150.0,0.00016652,2]
[378584809,1754917852298,-1247.9513493,0.00016656,2]
[378584811,1754917852307,-500.0,0.00016673,2]
[378584813,1754917852316,-500.0,0.00016673,2]
[378584815,1754917852326,-500.0,0.00016673,2]
[378584817,1754917852335,-500.0,0.00016673,2]
[378584819,1754917852344,-500.0,0.00016673,2]
[378584821,1754917852353,-150.0,0.00016676,2]
[378584823,1754917852363,-507.0,0.00016685,2]
[378584825,1754917852372,-193.47,0.00016688,2]
[378584827,1754917852380,-1000.0,0.000167,2]
[378584829,1754917852390,-1100.0,0.000167,6]
[378584831,1754917852399,-1076.34,0.000167,2]
[378584833,1754917852408,-173.18,0.000167,2]
[378584835,1754917852417,-467.96,0.000167,2]
[378584837,1754917852426,-165.73,0.000167,2]
[378584839,1754917852437,-150.0,0.000167,2]
[378584841,1754917852446,-9421.23985785,0.00016701,2]
[378584843,1754917852455,-151.0,0.00016704,2]
[378584845,1754917852464,-150.0,0.00016706,2]
[378584847,1754917852473,-150.0,0.00016709,2]
[378584849,1754917852483,-150.0,0.0001671,2]
[378584851,1754917852492,-2348.67209,0.0001672,2]
[378584853,1754917852501,-150.0,0.0001672,2]
[378584855,1754917852511,-150.0,0.00016726,2]
[378584856,1754917852520,-150.0,0.00016727,2]
[378584858,1754917852530,-150.0,0.00016731,2]
[378584860,1754917852540,-150.0,0.00016736,2]
[378584862,1754917852550,-150.0,0.00016738,2]
[378584864,1754917852559,-150.0,0.0001674,2]
[378584866,1754917852569,-150.0,0.00016741,2]
[378584868,1754917852579,-150.0,0.00016743,2]
[378584870,1754917852589,-150.0,0.00016752,2]
[378584872,1754917852599,-150.0,0.00016757,2]
[378584874,1754917852608,-150.0,0.00016761,2]
[378584876,1754917852617,-150.0,0.00016761,2]
[378584878,1754917852627,-150.0,0.00016762,2]
[378584880,1754917852636,-1000.0,0.00016765,2]
[378584882,1754917852653,-150.0,0.00016768,2]
[378584884,1754917852666,-150.0,0.00016777,2]
[378584886,1754917852675,-150.0,0.0001678,2]
[378584888,1754917852687,-150.0,0.00016782,2]
[378584890,1754917852696,-150.0,0.00016786,2]
[378584892,1754917852706,-1000.0,0.00016786,2]
[378584894,1754917852715,-150.0,0.00016787,2]
[378584896,1754917852724,-150.0,0.00016793,2]
[378584898,1754917852734,-150.0,0.00016798,2]
[378584900,1754917852743,-150.0,0.000168,2]
[378584901,1754917852754,-150.0,0.000168,2]
[378584902,1754917852763,-1700.0,0.000168,6]
[378584903,1754917852772,-935.92,0.000168,2]
[378584904,1754917852782,-1000.0,0.0001681,2]
[378584905,1754917852791,-150.0,0.0001681,2]
[378584906,1754917852800,-150.0,0.0001681,2]
[378584908,1754917852810,-150.0,0.00016816,2]
[378584910,1754917852820,-150.0,0.00016818,2]
[378584912,1754917852829,-1000.0,0.00016823,2]
[378584914,1754917852839,-1000.0,0.00016829,2]
[378584916,1754917852849,-150.0,0.00016831,2]
[378584918,1754917852859,-150.0,0.00016842,2]
[378584920,1754917852869,-1000.0,0.00016843,2]
[378584922,1754917852878,-150.0,0.00016844,2]
[378584924,1754917852890,-1000.0,0.00016847,2]
[378584926,1754917852902,-2348.67209,0.0001685,2]
[378584928,1754917852912,-150.0,0.00016854,2]
[378584930,1754917852921,-500.0,0.00016855,2]
[378584932,1754917852931,-500.0,0.00016855,2]
[378584934,1754917852943,-150.0,0.00016857,2]
[378584936,1754917852952,-150.0,0.00016859,2]
[378584938,1754917852963,-150.0,0.00016866,2]
[378584940,1754917852973,-47241.2125256,0.00016867,2]
[378584942,1754917852982,-150.0,0.00016869,2]
[378584944,1754917852991,-150.0,0.00016869,2]
[378584946,1754917853000,-150.0,0.00016871,2]
[378584948,1754917853011,-504.36534835,0.00016873,2]
[378584950,1754917853020,-500.0,0.00016873,2]
[378584952,1754917853029,-500.0,0.00016873,2]
[378584954,1754917853040,-500.0,0.00016873,2]
[378584956,1754917853050,-350.0,0.00016875,2]
[378584958,1754917853060,-150.0,0.00016876,2]
[378584960,1754917853069,-152.92082199,0.00016882,2]
[378584962,1754917853079,-9421.23985785,0.00016883,2]
[378584964,1754917853088,-150.0,0.00016884,2]
[378584966,1754917853098,-500.0,0.00016884,2]
[378584968,1754917853108,-2964.2708096,0.00016884,2]
[378584970,1754917853117,-500.0,0.00016884,2]
[378584988,1754917853268,-150.0,0.00016888,2]
[378584990,1754917853279,-508.08,0.0001689,2]
[378584992,1754917853288,-656.07,0.0001689,2]
[378584994,1754917853297,-1012.21,0.0001689,2]
[378584996,1754917853306,-1420.1,0.0001689,2]
[378584998,1754917853316,-1519.47,0.0001689,2]
[378585000,1754917853325,-2679.36,0.0001689,2]
[378585002,1754917853335,-1123.58,0.0001689,2]
[378585004,1754917853344,-2101.29,0.0001689,2]
[378585006,1754917853354,-882.08,0.0001689,2]
[378585008,1754917853363,-835.72,0.0001689,2]
[378585010,1754917853372,-3599.69,0.0001689,2]
[378585012,1754917853381,-2500.62,0.0001689,2]
[378585014,1754917853391,-996.25,0.0001689,2]
[378585016,1754917853401,-1685.03,0.0001689,2]
[378585018,1754917853409,-1552.68,0.0001689,2]
[378585020,1754917853419,-584.96,0.0001689,2]
[378585022,1754917853428,-3570.41,0.0001689,2]
[378585024,1754917853441,-849.91,0.0001689,2]
[378585026,1754917853451,-3049.06,0.0001689,2]
[378585028,1754917853460,-427.68,0.0001689,2]
[378585030,1754917853470,-400.0,0.0001689,2]
[378585032,1754917853480,-980.22,0.0001689,2]
[378585034,1754917853489,-531.919534,0.0001689,2]
[378585036,1754917853499,-996.075211,0.0001689,2]
[378585038,1754917853508,-400.0,0.0001689,2]
[378585040,1754917853518,-659.41,0.00016891,2]
[378585043,1754917853528,-400.0,0.00016891,2]
[378585045,1754917853538,-400.0,0.00016891,2]
[378585047,1754917853547,-400.0,0.00016891,2]
[378585049,1754917853556,-400.0,0.00016891,2]
[378585051,1754917853566,-1324.51,0.00016891,2]
[378585053,1754917853575,-400.0,0.00016891,2]
[378585055,1754917853584,-400.0,0.00016891,2]
[378585057,1754917853593,-400.0,0.00016891,2]
[378585059,1754917853602,-400.0,0.00016891,2]
[378585061,1754917853611,-539.83,0.00016891,2]
[378585063,1754917853621,-311.41659293,0.00016891,2]
[378585065,1754917853630,-400.0,0.00016891,2]
[378585067,1754917853639,-400.0,0.00016891,2]
[378585069,1754917853650,-400.0,0.00016891,2]
[378585071,1754917853659,-400.0,0.00016891,2]
[378585073,1754917853668,-453.35,0.00016891,2]
[378585075,1754917853677,-400.0,0.00016891,2]
[378585077,1754917853689,-400.0,0.00016891,2]
[378585079,1754917853699,-525.32,0.00016891,2]
[378585081,1754917853708,-400.0,0.00016891,2]
[378585083,1754917853717,-496.16,0.00016891,2]
[378585085,1754917853727,-400.0,0.00016891,2]
[378585087,1754917853737,-406.84365677,0.00016891,2]
[378585089,1754917853746,-488.39070901,0.00016891,2]
[378585091,1754917853756,-400.0,0.00016891,2]
[378585093,1754917853765,-400.0,0.00016891,2]
[378585095,1754917853775,-401.84692473,0.00016891,2]
[378585097,1754917853784,-809.8,0.00016891,2]
[378585099,1754917853794,-400.0,0.00016891,2]
[378585101,1754917853804,-480.1,0.00016891,2]
[378585103,1754917853813,-639.68,0.00016891,2]
[378585105,1754917853823,-400.1,0.00016891,2]
[378585107,1754917853832,-182.5,0.00016891,2]
[378585110,1754917853842,-400.0,0.00016891,2]
[378585112,1754917853852,-400.0,0.00016891,2]
[378585114,1754917853861,-687.99,0.00016891,2]
[378585115,1754917853871,-400.0,0.00016891,2]
[378585117,1754917853881,-400.0,0.00016891,2]
[378585120,1754917853892,-400.0,0.00016891,2]
[378585122,1754917853904,-400.0,0.00016891,2]
[378585124,1754917853915,-709.18,0.00016891,2]
[378585126,1754917853924,-485.95,0.00016891,2]
[378585127,1754917853934,-400.0,0.00016891,2]
[378585129,1754917853945,-597.52,0.00016891,2]
[378585131,1754917853954,-408.52,0.00016891,2]
[378585133,1754917853963,-219.45942362,0.00016891,2]
[378585135,1754917853973,-469.57,0.00016891,2]
[378585138,1754917853983,-400.0,0.00016891,2]
[378585140,1754917853993,-769.99,0.00016891,2]
[378585141,1754917854002,-400.0,0.00016891,2]
[378585144,1754917854012,-510.92,0.00016891,2]
[378585146,1754917854021,-711.2,0.00016891,2]
[378585148,1754917854030,-528.45,0.00016891,2]
[378585150,1754917854040,-400.0,0.00016891,2]
[378585152,1754917854049,-400.0,0.00016891,2]
[378585154,1754917854061,-400.0,0.00016891,2]
[378585156,1754917854071,-400.0,0.00016891,2]
[378585158,1754917854080,-637.34,0.00016891,2]
[378585160,1754917854089,-400.0,0.00016891,2]
[378585162,1754917854100,-400.0,0.00016891,2]
[378585164,1754917854109,-735.09,0.00016891,2]
[378585166,1754917854119,-400.0,0.00016891,2]
[378585168,1754917854129,-496.89,0.00016891,2]
[378585170,1754917854138,-400.0,0.00016891,2]
[378585172,1754917854148,-400.0,0.00016891,2]
[378585174,1754917854158,-1016.45,0.00016891,2]
[378585176,1754917854169,-969.71,0.00016891,2]
[378585178,1754917854178,-400.0,0.00016891,2]
[378585180,1754917854188,-270.7,0.00016891,2]
[378585182,1754917854197,-400.0,0.00016891,2]
[378585184,1754917854207,-400.0,0.00016891,2]
[378585186,1754917854217,-680.25,0.00016891,2]
[378585188,1754917854227,-400.0,0.00016891,2]
[378585191,1754917854237,-400.0,0.00016891,2]
[378585193,1754917854246,-957.41,0.00016891,2]
[378585195,1754917854256,-400.0,0.00016891,2]
[378585197,1754917854265,-400.0,0.00016891,2]
[378585199,1754917854275,-400.0,0.00016891,2]
[378585201,1754917854284,-400.0,0.00016891,2]
[378585203,1754917854293,-447.24,0.00016891,2]
[378585205,1754917854302,-400.0,0.00016891,2]
[378585207,1754917854312,-400.0,0.00016891,2]
[378585209,1754917854322,-400.0,0.00016891,2]
[378585211,1754917854331,-418.62,0.00016891,2]
[378585213,1754917854341,-400.0,0.00016891,2]
[378585215,1754917854351,-400.0,0.00016891,2]
[378585217,1754917854360,-400.0,0.00016891,2]
[378585219,1754917854370,-784.45,0.00016891,2]
[378585221,1754917854379,-400.0,0.00016891,2]
[378585223,1754917854389,-947.6,0.00016891,2]
[378585225,1754917854398,-293.29,0.00016891,2]
[378585227,1754917854407,-400.0,0.00016891,2]
[378585229,1754917854416,-400.0,0.00016891,2]
[378585231,1754917854426,-400.0,0.00016891,2]
[378585233,1754917854435,-599.8,0.00016891,2]
[378585235,1754917854445,-496.99,0.00016891,2]
[378585237,1754917854454,-400.0,0.00016891,2]
[378585239,1754917854463,-400.0,0.00016891,2]
[378585241,1754917854473,-422.87,0.00016891,2]
[378585243,1754917854483,-411.81,0.00016891,2]
[378585245,1754917854492,-400.0,0.00016891,2]
[378585247,1754917854501,-400.0,0.00016891,2]
[378585249,1754917854511,-400.0,0.00016891,2]
[378585251,1754917854520,-400.0,0.00016891,2]
[378585253,1754917854530,-409.97,0.00016891,2]
[378585255,1754917854540,-400.0,0.00016891,2]
[378585257,1754917854549,-402.01,0.00016891,2]
[378585259,1754917854559,-400.0,0.00016891,2]
[378585261,1754917854569,-403.06273944,0.00016891,2]
[378585263,1754917854578,-400.0,0.00016891,2]
[378585265,1754917854588,-400.0,0.00016891,2]
[378585267,1754917854598,-400.0,0.00016891,2]
[378585269,1754917854607,-400.0,0.00016891,2]
[378585271,1754917854616,-400.0,0.00016891,2]
[378585273,1754917854626,-497.02,0.00016891,2]
[378585275,1754917854635,-400.0,0.00016891,2]
[378585277,1754917854644,-400.0,0.00016891,2]
[378585279,1754917854654,-400.0,0.00016891,2]
[378585281,1754917854663,-487.39,0.00016891,2]
[378585283,1754917854672,-511.56,0.00016891,2]
[378585285,1754917854681,-400.0,0.00016891,2]
[378585287,1754917854692,-400.0,0.00016891,2]
[378585289,1754917854702,-400.0,0.00016891,2]
[378585291,1754917854712,-507.27,0.00016891,2]
[378585293,1754917854721,-400.0,0.00016891,2]
[378585295,1754917854730,-400.0,0.00016891,2]
[378585297,1754917854740,-400.0,0.00016891,2]
[378585299,1754917854749,-502.34,0.00016891,2]
[378585301,1754917854758,-400.0,0.00016891,2]
[378585303,1754917854768,-491.99,0.00016891,2]
[378585306,1754917854779,-583.79,0.00016891,2]
[378585308,1754917854788,-518.64696277,0.00016891,2]
[378585310,1754917854798,-400.0,0.00016891,2]
[378585312,1754917854807,-400.0,0.00016891,2]
[378585314,1754917854816,-400.0,0.00016891,2]
[378585316,1754917854826,-400.0,0.00016891,2]
[378585318,1754917854835,-400.0,0.00016891,2]
[378585320,1754917854845,-400.0,0.00016891,2]
[378585322,1754917854854,-400.0,0.00016891,2]
[378585324,1754917854863,-400.0,0.00016891,2]
[378585326,1754917854872,-1110.3,0.00016891,2]
[378585328,1754917854881,-791.23,0.00016891,2]
[378585330,1754917854892,-400.0,0.00016891,2]
[378585332,1754917854904,-411.73,0.00016891,2]
[378585333,1754917854913,-400.0,0.00016891,2]
[378585335,1754917854922,-473.57130991,0.00016891,2]
[378585337,1754917854932,-1567.98,0.00016891,2]
[378585339,1754917854942,-408.23,0.00016891,2]
[378585341,1754917854952,-400.0,0.00016891,2]
[378585343,1754917854961,-1395.83,0.00016891,2]
[378585345,1754917854971,-500.0,0.00016891,2]
[378585347,1754917854981,-400.0,0.00016891,2]
[378585349,1754917854990,-401.07019415,0.00016891,2]
[378585351,1754917854999,-758.38,0.00016891,2]
[378585353,1754917855009,-400.0,0.00016891,2]
[378585355,1754917855018,-400.0,0.00016891,2]
[378585357,1754917855027,-521.86,0.00016891,2]
[378585359,1754917855037,-644.9,0.00016891,2]
[378585362,1754917855047,-744.12,0.00016891,2]
[378585363,1754917855056,-400.0,0.00016891,2]
[378585365,1754917855066,-468.19,0.00016891,2]
[378585367,1754917855075,-454.67,0.00016891,2]
[378585369,1754917855084,-534.08,0.00016891,2]
[378585372,1754917855094,-757.55,0.00016891,2]
[378585373,1754917855103,-151.6198985,0.00016891,2]
[378585375,1754917855113,-400.0,0.00016891,2]
[378585378,1754917855122,-973.23,0.00016891,2]
[378585380,1754917855132,-400.0,0.00016891,2]
[378585382,1754917855141,-400.0,0.00016891,2]
[378585384,1754917855150,-400.0,0.00016891,2]
[378585386,1754917855160,-400.0,0.00016891,2]
[378585388,1754917855169,-400.0,0.00016891,2]
[378585390,1754917855179,-323.38333223,0.00016891,2]
[378585483,1754917856101,-206.29666777,0.00016891,2]
[378585485,1754917856111,-403.32310398,0.00016891,2]
[378585487,1754917856120,-400.0,0.00016891,2]
[378585489,1754917856130,-185.98022825,0.00016891,2]
[378585586,1754917857092,-400.0,0.00016617,2]
[378585588,1754917857102,-78.9,0.00016617,2]
[378585590,1754917857113,-421.1,0.00016617,2]
[378585592,1754917857122,-554.51,0.00016618,2]
[378585594,1754917857131,-500.0,0.00016618,2]
[378585596,1754917857141,-1090.11212631,0.00016618,2]
[378585598,1754917857152,-894.08539964,0.00016618,2]
[378585602,1754917857182,-282.78234949,0.00016618,2]
[378585604,1754917857195,-1165.64012456,0.00016618,2]
[378585606,1754917857204,-500.0,0.0001662,2]
[378585608,1754917857214,-150.0,0.0001662,2]
[378585610,1754917857224,-150.0,0.00016731,2]
[378585612,1754917857233,-214.01977175,0.00016891,2]
[378585614,1754917857242,-400.0,0.00016891,2]
[378585616,1754917857255,-470.67,0.00016891,2]
[378585618,1754917857264,-1344.06,0.00016891,2]
[378585620,1754917857274,-419.41,0.00016891,2]
[378585622,1754917857284,-400.0,0.00016891,2]
[378585624,1754917857294,-400.0,0.00016891,2]
[378585626,1754917857305,-260.73850808,0.00016891,2]
[378585628,1754917857320,-591.52,0.00016891,2]
[378585630,1754917857330,-219.29157744,0.00016891,2]
[378585632,1754917857339,-400.0,0.00016891,2]
[378585634,1754917857349,-868.33,0.00016891,2]
[378585635,1754917857358,-829.38,0.00016891,2]
[378585637,1754917857367,-681.35,0.00016891,2]
[378585639,1754917857377,-439.46,0.00016891,2]
[378585641,1754917857386,-1058.663944,0.00016891,2]
[378585643,1754917857397,-400.0,0.00016891,2]
[378585645,1754917857406,-400.0,0.00016891,2]
[378585647,1754917857416,-400.0,0.00016891,2]
[378585649,1754917857426,-400.0,0.00016891,2]
[378585651,1754917857435,-664.63,0.00016891,2]
[378585653,1754917857446,-400.0,0.00016891,2]
[378585655,1754917857456,-477.76,0.00016891,2]
[378585657,1754917857465,-482.23,0.00016891,2]
[378585659,1754917857474,-400.0,0.00016891,2]
[378585661,1754917857484,-400.0,0.00016891,2]
[378585663,1754917857493,-513.85,0.00016891,2]
[378585665,1754917857502,-400.0,0.00016891,2]
[378585667,1754917857512,-400.0,0.00016891,2]
[378585669,1754917857522,-400.0,0.00016891,2]
[378585671,1754917857532,-664.13,0.00016891,2]
[378585673,1754917857542,-1182.13,0.00016891,2]
[378585675,1754917857551,-710.48,0.00016891,2]
[378585677,1754917857561,-1041.74,0.00016891,2]
[378585679,1754917857571,-400.0,0.00016891,2]
[378585680,1754917857580,-3405.73,0.00016891,2]
[378585681,1754917857590,-400.0,0.00016891,2]
[378585682,1754917857599,-546.16,0.00016891,2]
[378585683,1754917857609,-5471.58,0.00016891,2]
[378585684,1754917857618,-400.0,0.00016891,2]
[378585685,1754917857627,-400.0,0.00016891,2]
[378585686,1754917857636,-802.8,0.00016891,2]
[378585687,1754917857646,-400.0,0.00016891,2]
[378585688,1754917857655,-1927.72,0.00016891,2]
[378585689,1754917857664,-400.0,0.00016891,2]
[378585690,1754917857673,-1735.31,0.00016891,2]
[378585691,1754917857682,-407.1,0.00016891,2]
[378585692,1754917857691,-554.95,0.00016891,2]
[378585693,1754917857701,-285.76825033,0.00016891,2]
[378585694,1754917857712,-247.10661563,0.00016891,2]
[378585695,1754917857721,-1436.01,0.00016891,2]
[378585696,1754917857731,-400.0,0.00016891,2]
[378585697,1754917857740,-400.0,0.00016891,2]
[378585698,1754917857749,-1762.37,0.00016891,2]
[378585699,1754917857758,-400.0,0.00016891,2]
[378585700,1754917857770,-400.0,0.00016891,2]
[378585702,1754917857780,-400.0,0.00016891,2]
[378585703,1754917857789,-400.0,0.00016891,2]
[378585705,1754917857799,-400.0,0.00016891,2]
[378585707,1754917857808,-400.0,0.00016891,2]
[378585709,1754917857817,-400.0,0.00016891,2]
[378585711,1754917857827,-400.0,0.00016891,2]
[378585713,1754917857836,-962.78,0.00016891,2]
[378585715,1754917857846,-400.0,0.00016891,2]
[378585717,1754917857856,-400.0,0.00016891,2]
[378585719,1754917857865,-400.0,0.00016891,2]
[378585721,1754917857876,-1570.93,0.00016891,2]
[378585723,1754917857887,-751.06,0.00016891,2]
[378585725,1754917857898,-759.6,0.00016891,2]
[378585727,1754917857909,-400.0,0.00016891,2]
[378585729,1754917857919,-180.24957437,0.00016891,2]
[378585731,1754917857928,-400.0,0.00016891,2]
[378585733,1754917857937,-754.74,0.00016891,2]
[378585735,1754917857947,-400.0,0.00016891,2]
[378585737,1754917857957,-438.55,0.00016891,2]
[378585739,1754917857966,-744.19,0.00016891,2]
[378585741,1754917857976,-400.0,0.00016891,2]
[378585743,1754917857985,-915.35,0.00016891,2]
[378585744,1754917857994,-400.0,0.00016891,2]
[378585746,1754917858003,-400.0,0.00016891,2]
[378585748,1754917858013,-400.0,0.00016891,2]
[378585750,1754917858022,-400.0,0.00016891,2]
[378585752,1754917858031,-400.0,0.00016891,2]
[378585754,1754917858041,-400.0,0.00016891,2]
[378585756,1754917858050,-400.0,0.00016891,2]
[378585758,1754917858059,-418.62,0.00016891,2]
[378585760,1754917858069,-1189.19,0.00016891,2]
[378585762,1754917858078,-400.0,0.00016891,2]
[378585764,1754917858087,-826.61,0.00016891,2]
[378585766,1754917858096,-400.0,0.00016891,2]
[378585768,1754917858105,-400.0,0.00016891,2]
[378585770,1754917858114,-484.54,0.00016891,2]
[378585772,1754917858124,-400.0,0.00016891,2]
[378585774,1754917858133,-844.6,0.00016891,2]
[378585776,1754917858142,-680.94,0.00016891,2]
[378585778,1754917858151,-400.0,0.00016891,2]
[378585780,1754917858161,-400.0,0.00016891,2]
[378585782,1754917858170,-400.0,0.00016891,2]
[378585784,1754917858179,-400.0,0.00016891,2]
[378585786,1754917858190,-1562.23,0.00016891,2]
[378585788,1754917858199,-400.0,0.00016891,2]
[378585790,1754917858209,-400.0,0.00016891,2]
[378585792,1754917858218,-1345.93,0.00016891,2]
[378585794,1754917858229,-400.0,0.00016891,2]
[378585796,1754917858238,-400.0,0.00016891,2]
[378585798,1754917858248,-400.0,0.00016891,2]
[378585800,1754917858257,-606.1,0.00016891,2]
[378585802,1754917858266,-500.0,0.00016891,2]
[378585804,1754917858276,-463.95659497,0.00016891,2]
[378585806,1754917858285,-400.0,0.00016891,2]
[378585808,1754917858295,-400.0,0.00016891,2]
[378585810,1754917858305,-2222.26,0.00016891,2]
[378585812,1754917858314,-982.94,0.00016891,2]
[378585814,1754917858324,-400.0,0.00016891,2]
[378585816,1754917858333,-400.0,0.00016891,2]
[378585818,1754917858342,-567.84,0.00016891,2]
[378585820,1754917858352,-400.0,0.00016891,2]
[378585822,1754917858361,-1576.08,0.00016891,2]
[378585824,1754917858371,-400.0,0.00016891,2]
[378585826,1754917858380,-400.0,0.00016891,2]
[378585828,1754917858389,-400.0,0.00016891,2]
[378585830,1754917858401,-228.62,0.00016891,2]
[378585833,1754917858416,-400.0,0.00016891,2]
[378585835,1754917858431,-400.0,0.00016891,2]
[378585837,1754917858445,-400.0,0.00016891,2]
[378585840,1754917858458,-1218.46,0.00016891,2]
[378585842,1754917858472,-43.10675467,0.00016891,2]
[378585850,1754917858541,-185.51324533,0.00016891,2]
[378585852,1754917858552,-400.0,0.00016891,2]
[378585855,1754917858564,-400.0,0.00016891,2]
[378585857,1754917858578,-400.0,0.00016891,2]
[378585859,1754917858591,-502.25,0.00016891,2]
[378585862,1754917858604,-400.0,0.00016891,2]
[378585864,1754917858617,-400.0,0.00016891,2]
[378585867,1754917858630,-400.0,0.00016891,2]
[378585869,1754917858643,-400.0,0.00016891,2]
[378585872,1754917858657,-1240.02,0.00016891,2]
[378585874,1754917858671,-400.0,0.00016891,2]
[378585876,1754917858685,-816.76,0.00016891,2]
[378585879,1754917858702,-400.0,0.00016891,2]
[378585881,1754917858714,-400.0,0.00016891,2]
[378585883,1754917858728,-400.0,0.00016891,2]
[378585886,1754917858740,-433.96,0.00016891,2]
[378585888,1754917858753,-400.0,0.00016891,2]
[378585890,1754917858767,-780.27,0.00016891,2]
[378585893,1754917858779,-400.0,0.00016891,2]